bitfinex-derivatives/quotes_SOLF0:USTF0_20250307
["timestamp","ask_amount","ask_price","bid_price","bid_amount"]
[1741369715135,7.9351,143.28,143.19,33.06]
[1741369715331,7.9351,143.28,143.23,6.9813]
[1741369715533,7.9351,143.28,143.19,33.06]
[1741369715732,43.40254703,143.36,143.19,33.06]
[1741369715733,209.5,143.39,143.2,43.40254703]
[1741369716040,3.9684,143.34,143.21,33.06]
[1741369716339,43.40254703,143.32,143.18,209.5]
[1741369716543,43.40254703,143.29,143.19,33.06]
[1741369717037,43.40254703,143.29,143.23,0.04476682]
[1741369717238,38.24350501,143.34,143.23,33.10476682]
[1741369717239,43.40254703,143.32,143.23,33.10476682]
[1741369717831,43.40254703,143.32,143.26,0.0518791]
[1741369718025,43.40254703,143.32,143.29,6.9786]
[1741369718432,43.40254703,143.32,143.29,7.027837]
[1741369718632,43.40254703,143.32,143.29,7.027737]
[1741369719339,4.0088,143.33,143.3,6.9782]
[1741369720133,4.0088,143.33,143.29,0.049237]
[1741369720335,4.0088,143.33,143.24,33.04]
[1741369720535,4.0088,143.33,143.27,6.9796]
[1741369720937,43.40254703,143.31,143.24,33.04]
[1741369721138,43.40254703,143.31,143.27,6.9795]
[1741369721443,43.40254703,143.31,143.24,33.04]
[1741369721739,0.04442798,143.29,143.26,0.05326219]
[1741369721934,0.04442798,143.29,143.23,33.04]
[1741369722134,43.40254703,143.31,143.23,33.04]
[1741369723239,0.04967652,143.28,143.26,0.05004574]
[1741369723937,0.04967652,143.28,143.23,33.04]
[1741369724140,0.04967652,143.28,143.27,6.9796]
[1741369724337,0.04967652,143.28,143.23,33.04]
[1741369724942,0.04967652,143.28,143.27,6.9796]
[1741369729443,0.04967652,143.28,143.24,0.04828888]
[1741369732447,0.04967652,143.28,143.27,6.9796]
[1741369736347,0.04967652,143.28,143.25,6.9805]
[1741369736543,0.04967652,143.28,143.24,0.04828888]
[1741369736843,41.8016,143.46,143.24,0.04828888]
[1741369736844,175.10458788,143.49,143.42,6.9719]
[1741369737050,175.10458788,143.49,143.42,33.04]
[1741369737051,3.7251,143.48,143.42,33.04]
[1741369737245,63.26195822,143.47,143.43,26.52755865]
[1741369737446,63.26195822,143.47,143.41,33.04]
[1741369737655,63.26195822,143.47,143.38,33.04]
[1741369737843,0.04451325,143.45,143.43,0.04768433]
[1741369740451,46.96469911,143.55,143.43,0.04768433]
[1741369740651,7.9362,143.58,143.48,43.00249911]
[1741369740847,7.9362,143.58,143.48,76.02249911]
[1741369741355,7.9362,143.58,143.48,33.02]
[1741369741551,0.05108625,143.54,143.48,76.02249911]
[1741369741755,0.05108625,143.54,143.5,0.04612729]
[1741369742052,3.7921,143.62,143.5,0.04612729]
[1741369742053,3.7921,143.62,143.53,6.967]
[1741369742249,3.9732,143.68,143.54,76.02249911]
[1741369742444,3.9732,143.68,143.57,43.00249911]
[1741369742642,3.9732,143.68,143.58,33.02]
[1741369743256,6.9608,143.66,143.62,0.046724]
[1741369743457,3.9732,143.68,143.62,0.046724]
[1741369743948,3.9732,143.68,143.5,43.00249911]
[1741369744150,43.00249911,143.65,143.51,33.0]
[1741369744451,76.00249911,143.65,143.51,33.0]
[1741369744655,43.00249911,143.62,143.51,33.0]
[1741369744856,41.012,143.61,143.51,33.0]
[1741369745258,0.05329081,143.57,143.55,0.04824633]
[1741369745452,84.01449911,143.67,143.56,33.0]
[1741369745755,84.01449911,143.67,143.57,6.9651]
[1741369746052,84.01449911,143.67,143.56,33.0]
[1741369746754,84.01449911,143.67,143.6,0.04491345]
[1741369747156,43.00249911,143.61,143.51,32.98]
[1741369747355,43.00249911,143.58,143.48,32.98]
[1741369747552,6.9655,143.57,143.48,32.98]
[1741369747955,0.0456993,143.54,143.48,32.98]
[1741369749160,0.0456993,143.54,143.5,0.05126536]
[1741369749557,0.0456993,143.53,143.51,0.05214311]
[1741369749862,43.00249911,143.55,143.44,32.98]
[1741369750257,6.9674,143.53,143.45,6.9708]
[1741369750559,43.00249911,143.55,143.43,43.00249911]
[1741369750758,32.98,143.56,143.44,36.7886]
[1741369750964,0.05288938,143.5,143.48,0.04934599]
[1741369751158,3.7443,143.57,143.48,33.02934599]
[1741369751353,3.7443,143.57,143.48,32.98]
[1741369751655,6.9676,143.52,143.51,0.0501685]
[1741369751957,0.04901879,143.54,143.43,32.98]
[1741369752157,43.00249911,143.52,143.43,32.98]
[1741369752459,43.00249911,143.49,143.42,32.98]
[1741369752960,4.0879,143.51,143.42,32.98]
[1741369753151,0.05132721,143.47,143.44,0.05231172]
[1741369753348,43.00249911,143.55,143.42,32.98]
[1741369753561,0.0526995,143.47,143.44,0.04435749]
[1741369753863,75.98249911,143.52,143.42,32.98]
[1741369754063,0.05289836,143.47,143.44,0.05178446]
[1741369754960,0.05289836,143.47,143.36,43.00249911]
[1741369754961,43.00249911,143.46,143.33,43.00249911]
[1741369755159,43.00249911,143.46,143.34,32.98]
[1741369755356,43.00249911,143.46,143.35,6.9757]
[1741369755357,6.9736,143.4,143.35,6.9757]
[1741369755549,43.00249911,143.46,143.33,32.98]
[1741369755753,43.00249911,143.46,143.31,7.9739]
[1741369755950,43.00249911,143.4,143.14,284.25928737]
[1741369756151,43.00249911,143.36,143.24,43.00249911]
[1741369756354,245.7631,143.39,143.27,43.00249911]
[1741369756560,209.1,143.39,143.27,43.00249911]
[1741369756762,43.00249911,143.43,143.3,43.00249911]
[1741369756954,43.00249911,143.43,143.31,32.98]
[1741369757366,0.04799382,143.38,143.36,0.04634314]
[1741369757570,32.98,143.41,143.36,0.04634314]
[1741369757861,0.05077366,143.38,143.36,0.04634314]
[1741369758064,43.00249911,143.43,143.36,0.04634314]
[1741369758263,0.05066211,143.38,143.36,0.04634314]
[1741369758462,43.00249911,143.39,143.36,0.04634314]
[1741369758655,0.04602829,143.38,143.36,0.04634314]
[1741369759161,6.9748,143.37,143.36,0.04634314]
[1741369760458,7.02042829,143.38,143.36,0.04634314]
[1741369760657,0.04602829,143.38,143.36,0.04634314]
[1741369761053,6.9748,143.37,143.36,0.04634314]
[1741369761254,43.0485274,143.38,143.25,3.8089]
[1741369761459,43.00249911,143.35,143.26,32.98]
[1741369761659,6.9779,143.31,143.26,32.98]
[1741369761863,43.00249911,143.35,143.26,32.98]
[1741369762664,0.05367878,143.32,143.29,0.05001103]
[1741369762867,6.9781,143.31,143.29,0.05001103]
[1741369763065,0.05367878,143.32,143.29,0.05001103]
[1741369763768,43.05617789,143.32,143.21,3.9274]
[1741369763961,43.00249911,143.32,143.22,32.98]
[1741369764162,43.00249911,143.32,143.23,32.98]
[1741369764558,3.9522,143.31,143.23,32.98]
[1741369764967,0.04600365,143.28,143.26,0.05371185]
[1741369765367,6.9796,143.27,143.26,0.05371185]
[1741369765773,0.04600365,143.28,143.26,0.05371185]
[1741369766864,0.04600365,143.28,143.27,32.98]
[1741369767470,0.04600365,143.28,143.26,0.05371185]
[1741369767675,7.02540365,143.28,143.26,0.05371185]
[1741369767867,0.04600365,143.28,143.26,0.05371185]
[1741369768475,7.02520365,143.28,143.26,0.05371185]
[1741369768673,0.04600365,143.28,143.26,0.05371185]
[1741369768975,6.9796,143.27,143.26,0.05371185]
[1741369771374,6.9796,143.27,143.21,33.0]
[1741369771375,6.9832,143.2,143.18,4.0872]
[1741369771673,43.00249911,143.27,143.18,37.0872]
[1741369771881,46.91479911,143.29,143.18,37.0872]
[1741369772582,0.04754973,143.25,143.22,0.05056781]
[1741369772786,0.04754973,143.25,143.23,33.0]
[1741369774285,7.02854973,143.25,143.23,33.0]
[1741369774479,0.04754973,143.25,143.22,0.05056781]
[1741369774988,0.04754973,143.25,143.22,7.03226781]
[1741369775185,0.04754973,143.25,143.22,0.05056781]
[1741369775374,0.04754973,143.25,143.24,6.9811]
[1741369775683,36.9123,143.33,143.22,0.05056781]
[1741369775684,3.9123,143.33,143.22,0.05056781]
[1741369775884,6.9783,143.3,143.26,6.9798]
[1741369776085,3.9123,143.33,143.26,33.0]
[1741369776383,6.9796,143.27,143.26,33.0]
[1741369776574,43.00249911,143.32,143.23,33.0]
[1741369776772,0.05165091,143.28,143.25,0.04700774]
[1741369777084,0.05165091,143.28,143.27,6.9796]
[1741369777384,0.05165091,143.28,143.27,39.9796]
[1741369777576,3.7479,143.34,143.27,33.0]
[1741369777775,3.7479,143.34,143.24,33.0]
[1741369777979,36.7479,143.34,143.24,33.0]
[1741369778176,43.00249911,143.3,143.21,33.0]
[1741369778481,76.00249911,143.3,143.21,33.0]
[1741369778688,43.05178255,143.27,143.19,6.9834]
[1741369778884,43.05178255,143.27,143.18,37.0872]
[1741369779088,6.9821,143.22,143.21,0.04880973]
[1741369780690,0.05286439,143.24,143.21,0.04880973]
[1741369781091,6.9821,143.22,143.21,0.04880973]
[1741369782779,6.9818,143.23,143.21,0.04880973]
[1741369783183,7.03406439,143.24,143.21,0.04880973]
[1741369783390,0.05286439,143.24,143.21,0.04880973]
[1741369784189,33.0,143.32,143.21,0.04880973]
[1741369784190,76.00249911,143.32,143.21,0.04880973]
[1741369784387,6.9779,143.31,143.21,3.7958]
[1741369784689,7.7622,143.34,143.28,6.9788]
[1741369784989,7.7622,143.34,143.28,39.9788]
[1741369785188,7.7622,143.34,143.28,33.0]
[1741369785394,0.04441632,143.32,143.3,0.05049153]
[1741369785594,6.9777,143.31,143.3,0.05049153]
[1741369786391,0.04441632,143.32,143.25,33.0]
[1741369786692,11.7302,143.34,143.27,6.9794]
[1741369786894,11.7302,143.34,143.25,33.0]
[1741369787496,43.14875559,143.31,143.25,33.0]
[1741369787684,43.14875559,143.31,143.28,0.05308583]
[1741369788384,6.9787,143.29,143.28,0.05308583]
[1741369789390,43.14875559,143.31,143.28,0.05308583]
[1741369789891,0.04718755,143.31,143.28,0.05308583]
[1741369791491,7.02518755,143.31,143.28,0.05308583]
[1741369792191,7.02518755,143.31,143.29,33.0]
[1741369792192,0.04718755,143.31,143.29,33.0]
[1741369792389,0.04718755,143.31,143.3,6.9782]
[1741369792581,0.04718755,143.31,143.29,33.0]
[1741369793597,7.02518755,143.31,143.28,0.05308583]
[1741369793796,0.04718755,143.31,143.28,33.05308583]
[1741369794593,0.04718755,143.31,143.3,6.9782]
[1741369795897,0.04718755,143.31,143.29,6.9784]
[1741369796197,0.04718755,143.31,143.28,0.05308583]
[1741369796492,8.755e-05,143.31,143.3,6.9782]
[1741369796696,43.10156804,143.39,143.3,32.98]
[1741369797689,50.07566804,143.39,143.33,0.04737104]
[1741369797894,0.05220384,143.36,143.35,6.9754]
[1741369799799,0.05220384,143.36,143.34,32.98]
[1741369800302,0.05220384,143.36,143.33,0.04737104]
[1741369801197,0.05220384,143.36,143.35,6.9757]
[1741369801402,43.10156804,143.5,143.35,32.98]
[1741369801699,6.9731,143.41,143.37,6.9746]
[1741369801897,43.10156804,143.38,143.24,209.7909]
[1741369802196,32.98,143.37,143.25,36.6782]
[1741369802404,43.10156804,143.35,143.25,36.6782]
[1741369802590,0.04851659,143.32,143.3,0.05128792]
[1741369802794,43.15008463,143.32,143.2,32.98]
[1741369802999,43.10156804,143.29,143.19,3.6982]
[1741369803203,32.98,143.28,143.22,6.982]
[1741369803395,43.10156804,143.26,143.18,9.37097874]
[1741369803598,32.98,143.28,143.18,9.37097874]
[1741369803903,43.10156804,143.29,143.19,32.98]
[1741369804203,0.04635568,143.24,143.22,0.04951266]
[1741369804396,43.10156804,143.29,143.22,0.04951266]
[1741369804598,0.0485931,143.24,143.23,32.98]
[1741369804798,43.10156804,143.29,143.23,39.9611]
[1741369805106,0.04890894,143.27,143.23,32.98]
[1741369805302,8.94e-06,143.27,143.23,32.98]
[1741369805497,43.10156804,143.37,143.24,47.05098351]
[1741369805703,3.7322,143.38,143.27,43.10156804]
[1741369805892,3.7322,143.38,143.35,6.9757]
[1741369806095,3.7322,143.38,143.33,32.96]
[1741369806298,3.7322,143.38,143.32,32.96]
[1741369806606,0.05356272,143.37,143.34,0.05168144]
[1741369807106,0.05356272,143.37,143.34,7.02778144]
[1741369807304,0.05356272,143.37,143.34,0.05168144]
[1741369810306,6.272e-05,143.37,143.34,0.05168144]
[1741369810507,6.272e-05,143.37,143.34,30.02138981]
[1741369810807,6.272e-05,143.37,143.36,6.9753]
[1741369811004,6.272e-05,143.37,143.34,0.05168144]
[1741369811200,6.272e-05,143.37,143.36,6.9753]
[1741369811705,6.272e-05,143.37,143.34,0.05168144]
[1741369812002,6.272e-05,143.37,143.22,235.80970837]
[1741369812003,26.48970837,143.36,143.22,235.80970837]
[1741369812308,6.9773,143.32,143.24,32.96]
[1741369812501,26.48970837,143.3,143.24,32.96]
[1741369813410,0.04504075,143.28,143.26,0.04590728]
[1741369813607,0.04504075,143.28,143.21,32.96]
[1741369814111,0.04504075,143.28,143.22,6.9817]
[1741369814308,0.04504075,143.28,143.21,32.96]
[1741369814702,0.04504075,143.28,143.23,0.05344856]
[1741369815304,4.075e-05,143.28,143.27,6.9796]
[1741369815508,4.075e-05,143.28,143.27,39.9396]
[1741369816004,4.075e-05,143.28,143.27,43.4196]
[1741369816402,4.075e-05,143.28,143.27,39.9396]
[1741369817407,4.075e-05,143.28,143.27,43.4196]
[1741369817908,4.075e-05,143.28,143.27,39.9396]
[1741369819214,4.075e-05,143.28,143.26,0.0484328]
[1741369819600,6.9807,143.25,143.17,3.7197]
[1741369819910,43.11956778,143.28,143.17,3.7197]
[1741369820710,0.05135798,143.24,143.21,0.05072837]
[1741369820908,7.8933,143.3,143.21,32.96]
[1741369821205,32.96,143.35,143.22,43.11956778]
[1741369821407,43.11956778,143.34,143.21,32.96]
[1741369821606,43.11956778,143.31,143.21,32.96]
[1741369821809,6.9799,143.27,143.21,32.96]
[1741369822010,76.07956778,143.31,143.21,32.96]
[1741369822208,6.9808,143.25,143.18,32.96]
[1741369822508,0.05365837,143.27,143.18,32.96]
[1741369822807,0.04931186,143.24,143.2,0.0485089]
[1741369823607,0.04931186,143.24,143.2,7.0314089]
[1741369823803,0.04931186,143.24,143.2,0.0485089]
[1741369824216,0.04931186,143.24,143.21,6.9821]
[1741369825510,0.04931186,143.24,143.23,6.9816]
[1741369826314,43.11956778,143.35,143.23,3.5]
[1741369826511,54.79836778,143.35,143.22,32.96]
[1741369826907,43.11956778,143.32,143.22,32.96]
[1741369827109,76.07956778,143.32,143.22,32.96]
[1741369827307,43.11956778,143.29,143.19,32.96]
[1741369827512,7.02850634,143.26,143.23,0.05027969]
[1741369827714,0.04810634,143.26,143.23,0.05027969]
[1741369828027,0.04810634,143.26,143.25,6.9806]
[1741369828215,0.04810634,143.26,143.23,0.05027969]
[1741369829018,6.34e-06,143.26,143.25,6.9806]
[1741369830019,6.34e-06,143.26,143.25,10.4806]
[1741369831423,6.34e-06,143.26,143.25,6.9806]
[1741369831720,6.34e-06,143.26,143.25,10.4806]
[1741369832822,6.34e-06,143.26,143.25,6.9806]
[1741369833022,6.34e-06,143.26,143.25,53.60016778]
[1741369833520,6.34e-06,143.26,143.25,10.4806]
[1741369833721,4.0316,143.4,143.25,89.73913556]
[1741369833928,6.971,143.45,143.35,43.11956778]
[1741369834114,3.9216,143.48,143.38,6.974]
[1741369834315,43.11956778,143.47,143.36,32.96]
[1741369834515,6.9719,143.43,143.36,32.96]
[1741369834715,43.11956778,143.44,143.36,32.96]
[1741369834916,0.04852821,143.4,143.38,0.05114106]
[1741369835215,2.821e-05,143.4,143.39,6.9738]
[1741369836117,2.821e-05,143.4,143.38,0.05114106]
[1741369836421,2.821e-05,143.4,143.38,46.65070884]
[1741369836615,67.46695778,143.49,143.39,209.36]
[1741369836823,56.55555778,143.49,143.46,43.11956778]
[1741369837118,56.55555778,143.49,143.47,32.94]
[1741369837318,56.55555778,143.49,143.48,6.9694]
[1741369837519,56.55555778,143.49,143.47,32.94]
[1741369837724,56.55555778,143.49,143.47,32.9876497]
[1741369838026,56.55555778,143.49,143.48,6.9694]
[1741369838218,56.55555778,143.49,143.47,32.9876497]
[1741369838419,56.55555778,143.49,143.48,6.9694]
[1741369838624,56.55555778,143.49,143.47,32.9876497]
[1741369839118,56.55555778,143.49,143.47,0.0476497]
[1741369839516,56.55555778,143.49,143.44,32.92]
[1741369839720,56.55555778,143.49,143.43,32.92]
[1741369839925,3.8778,143.48,143.43,32.92]
[1741369840124,6.9704,143.46,143.4,32.92]
[1741369840519,3.8778,143.48,143.4,32.92]
[1741369840719,0.05077136,143.44,143.42,0.04488317]
[1741369840917,0.05077136,143.44,143.33,252.39956778]
[1741369841128,3.7668,143.47,143.4,6.9732]
[1741369841324,3.7668,143.47,143.39,32.92]
[1741369841624,56.55555778,143.49,143.39,32.92]
[1741369841824,56.55555778,143.49,143.38,43.11956778]
[1741369842021,99.67512556,143.49,143.39,32.92]
[1741369842325,0.0519382,143.45,143.42,0.05172927]
[1741369844024,0.0519382,143.45,143.33,252.39956778]
[1741369844226,43.11956778,143.47,143.32,32.92]
[1741369844227,43.11956778,143.44,143.32,32.92]
[1741369844415,43.11956778,143.41,143.32,32.92]
[1741369844613,76.03956778,143.41,143.27,43.11956778]
[1741369844819,76.03956778,143.41,143.28,32.92]
[1741369845224,0.05315977,143.36,143.33,0.04755283]
[1741369846727,7.02865977,143.36,143.33,0.04755283]
[1741369846927,0.05315977,143.36,143.33,0.04755283]
[1741369849719,7.02865977,143.36,143.33,0.04755283]
[1741369849919,0.05315977,143.36,143.33,0.04755283]
[1741369851327,5.977e-05,143.36,143.33,43.16712061]
[1741369851515,5.977e-05,143.36,143.35,6.9757]
[1741369851829,5.977e-05,143.36,143.35,10.4557]
[1741369852127,5.977e-05,143.36,143.35,6.9757]
[1741369852428,5.977e-05,143.36,143.35,10.4557]
[1741369854217,209.28,143.53,143.36,13.9505]
[1741369854421,209.28,143.53,143.42,43.11956778]
[1741369854619,209.28,143.53,143.43,32.9]
[1741369854929,11.7535,143.56,143.45,43.11956778]
[1741369855426,0.04428481,143.52,143.49,0.04940275]
[1741369855825,8.481e-05,143.52,143.51,6.968]
[1741369856023,8.481e-05,143.52,143.51,50.08756778]
[1741369856831,8.481e-05,143.52,143.51,6.968]
[1741369857018,8.481e-05,143.52,143.51,32.9]
[1741369858225,8.481e-05,143.52,143.49,0.04940275]
[1741369859329,8.481e-05,143.52,143.51,6.968]
[1741369859624,8.481e-05,143.52,143.49,0.04940275]
[1741369860432,8.481e-05,143.52,143.51,6.968]
[1741369860631,8.481e-05,143.52,143.49,0.04940275]
[1741369860833,8.481e-05,143.52,143.51,6.968]
[1741369861136,8.481e-05,143.52,143.49,0.04940275]
[1741369861528,8.481e-05,143.52,143.51,6.968]
[1741369861730,8.481e-05,143.52,143.49,0.04940275]
[1741369862934,8.481e-05,143.52,143.5,6.9685]
[1741369863233,8.481e-05,143.52,143.49,7.01800275]
[1741369863435,8.481e-05,143.52,143.49,0.04940275]
[1741369863935,8.481e-05,143.52,143.5,32.88]
[1741369864335,8.481e-05,143.52,143.5,39.848]
[1741369864736,8.481e-05,143.52,143.51,26.43121306]
[1741369864935,8.481e-05,143.52,143.5,32.88]
[1741369865134,26.43121306,143.67,143.51,26.43121306]
[1741369865339,212.9053,143.7,143.6,6.9633]
[1741369865553,6.9599,143.68,143.6,32.88]
[1741369865739,7.8275,143.69,143.6,32.88]
[1741369866247,0.04824739,143.66,143.63,0.0527962]
[1741369867040,6.9617,143.64,143.58,32.88]
[1741369867340,42.88726257,143.66,143.58,32.88]
[1741369867537,42.88726257,143.63,143.51,32.86]
[1741369867736,32.86,143.62,143.51,32.86]
[1741369868147,0.04930856,143.58,143.55,0.05225454]
[1741369868446,0.04930856,143.58,143.55,32.91225454]
[1741369869050,0.04930856,143.58,143.56,6.9655]
[1741369869348,0.04930856,143.58,143.55,32.91225454]
[1741369869548,0.04930856,143.58,143.55,0.05225454]
[1741369871053,0.04930856,143.58,143.57,6.9651]
[1741369871349,0.04930856,143.58,143.57,32.86]
[1741369871552,0.04930856,143.58,143.57,39.8251]
[1741369871942,0.04930856,143.58,143.57,32.86]
[1741369872341,0.04930856,143.58,143.55,0.05225454]
[1741369872545,32.86,143.57,143.55,0.05225454]
[1741369872856,32.86,143.57,143.47,32.86]
[1741369873042,40.6309,143.57,143.47,32.86]
[1741369873355,7.7709,143.57,143.54,6.9665]
[1741369873654,3.7789,143.57,143.49,42.88726257]
[1741369874056,0.05360133,143.54,143.52,0.04809789]
[1741369874252,7.02010133,143.54,143.52,0.04809789]
[1741369874456,32.86,143.55,143.43,42.88726257]
[1741369874748,251.90726257,143.58,143.43,42.88726257]
[1741369874749,40.651,143.54,143.43,42.88726257]
[1741369874954,0.05141978,143.5,143.48,0.05214988]
[1741369875456,0.05141978,143.5,143.49,6.9686]
[1741369875753,1.978e-05,143.5,143.49,6.9686]
[1741369876558,1.978e-05,143.5,143.48,7.02144988]
[1741369876855,1.978e-05,143.5,143.48,0.05214988]
[1741369877055,1.978e-05,143.5,143.49,6.9689]
[1741369878557,1.978e-05,143.5,143.48,0.05214988]
[1741369879455,32.86001978,143.5,143.4,75.74726257]
[1741369879656,32.86,143.5,143.4,75.74726257]
[1741369879853,6.97,143.47,143.4,75.74726257]
[1741369880060,32.86,143.5,143.43,6.9714]
[1741369880459,3.7807,143.53,143.4,75.74726257]
[1741369880460,36.6407,143.53,143.4,75.74726257]
[1741369880959,0.04972265,143.48,143.45,0.04762821]
[1741369881159,0.04972265,143.48,143.47,6.9699]
[1741369881560,0.04972265,143.48,143.45,0.04762821]
[1741369881961,2.265e-05,143.48,143.47,6.9699]
[1741369882958,2.265e-05,143.48,143.47,10.4499]
[1741369884863,4.0729,143.59,143.47,10.4499]
[1741369885162,4.0729,143.59,143.58,6.9646]
[1741369885563,7.4877,143.62,143.58,6.9646]
[1741369885963,0.04611063,143.61,143.59,0.04943982]
[1741369887360,0.04611063,143.61,143.54,39.8064]
[1741369887665,0.04611063,143.61,143.51,32.84]
[1741369887666,42.88726257,143.6,143.51,32.84]
[1741369887855,42.88726257,143.6,143.49,32.84]
[1741369888052,32.84,143.61,143.49,32.84]
[1741369888564,0.05248395,143.56,143.54,0.04582863]
[1741369888764,32.84,143.61,143.54,0.04582863]
[1741369888964,0.05128219,143.56,143.54,0.04582863]
[1741369889263,0.04654426,143.56,143.54,0.04582863]
[1741369889466,0.04654426,143.56,143.49,32.84]
[1741369889862,0.04654426,143.56,143.46,7.5471]
[1741369890169,0.04654426,143.56,143.46,32.84]
[1741369890170,3.949,143.56,143.46,32.84]
[1741369890362,42.88726257,143.55,143.46,32.84]
[1741369890568,32.84,143.54,143.46,32.84]
[1741369890769,0.0496793,143.52,143.49,0.05354225]
[1741369891273,0.0496793,143.52,143.51,6.968]
[1741369892271,7.93e-05,143.52,143.51,6.968]
[1741369893368,7.93e-05,143.52,143.51,53.33526257]
[1741369895064,7.93e-05,143.52,143.51,10.448]
[1741369895771,209.02,143.72,143.51,3.48]
[1741369895965,3.8071,143.71,143.61,42.88726257]
[1741369896167,3.8071,143.71,143.67,6.9598]
[1741369896369,3.8071,143.71,143.66,32.84]
[1741369896668,0.04722462,143.7,143.67,0.05211923]
[1741369897463,6.9597,143.68,143.67,0.05211923]
[1741369897770,46.69436257,143.69,143.63,32.84]
[1741369897970,46.69436257,143.69,143.6,32.82]
[1741369898176,6.9617,143.64,143.6,32.82]
[1741369898671,79.51436257,143.69,143.6,32.82]
[1741369898871,3.90799784,143.63,143.61,0.05287068]
[1741369899071,3.90442625,143.63,143.6,32.82]
[1741369899272,6.9626,143.62,143.57,39.7847]
[1741369899469,3.8582,143.63,143.57,32.82]
[1741369899779,10.8205,143.63,143.57,32.82]
[1741369899970,3.8582,143.63,143.57,32.82]
[1741369900170,0.04555491,143.61,143.59,0.05030199]
[1741369901470,0.04555491,143.61,143.57,32.82]
[1741369902077,7.00905491,143.61,143.57,32.82]
[1741369902375,0.04555491,143.61,143.58,0.05214101]
[1741369902778,0.04555491,143.61,143.58,7.01664101]
[1741369902978,0.04555491,143.61,143.58,0.05214101]
[1741369903373,0.04555491,143.61,143.58,7.01654101]
[1741369903574,0.04555491,143.61,143.58,0.05214101]
[1741369904280,0.04555491,143.61,143.6,6.9636]
[1741369906581,5.491e-05,143.61,143.6,6.9636]
[1741369906771,5.491e-05,143.61,143.6,10.4436]
[1741369907583,5.491e-05,143.61,143.6,6.9636]
[1741369908178,5.491e-05,143.61,143.6,10.4436]
[1741369909483,5.491e-05,143.61,143.6,6.9636]
[1741369910888,5.491e-05,143.61,143.58,0.05214101]
[1741369911378,5.491e-05,143.61,143.59,6.9637]
[1741369911586,5.491e-05,143.61,143.58,0.05214101]
[1741369912086,5.491e-05,143.61,143.6,6.9636]
[1741369913484,5.491e-05,143.61,143.59,6.964]
[1741369913785,5.491e-05,143.61,143.58,0.05214101]
[1741369914886,5.491e-05,143.61,143.6,6.9636]
[1741369915479,5.491e-05,143.61,143.58,0.05214101]
[1741369916087,5.491e-05,143.61,143.6,6.9636]
[1741369919079,7.777,143.7,143.6,3.48]
[1741369919387,7.777,143.7,143.62,42.88726257]
[1741369919577,7.777,143.7,143.67,6.9599]
[1741369919778,7.777,143.7,143.66,32.78]
[1741369920186,0.05031663,143.69,143.68,6.9594]
[1741369921185,0.05031663,143.69,143.67,0.04560334]
[1741369921890,0.05031663,143.69,143.59,42.88726257]
[1741369922091,3.8461,143.7,143.6,32.78]
[1741369922388,46.73336257,143.7,143.6,32.78]
[1741369922686,6.9621,143.64,143.6,32.78]
[1741369922883,32.78,143.68,143.6,32.78]
[1741369923079,0.04921296,143.63,143.61,0.04754217]
[1741369923285,32.78,143.68,143.61,0.04754217]
[1741369923791,0.04438898,143.66,143.57,32.78]
[1741369923983,32.78,143.68,143.57,32.78]
[1741369924393,32.78,143.68,143.58,42.88726257]
[1741369924786,3.8461,143.7,143.58,42.88726257]
[1741369925091,0.04793377,143.65,143.63,0.05058807]
[1741369925285,3.8461,143.7,143.63,0.05058807]
[1741369925487,6.9609,143.66,143.63,0.05058807]
[1741369925687,0.05126351,143.68,143.63,0.05058807]
[1741369925991,0.05126351,143.68,143.55,42.88726257]
[1741369926192,36.6261,143.7,143.56,32.78]
[1741369927084,6.9608,143.66,143.56,32.78]
[1741369927391,0.04751149,143.64,143.62,0.05247338]
[1741369927589,36.6261,143.7,143.62,32.83247338]
[1741369927785,36.6261,143.7,143.62,0.05247338]
[1741369928091,0.04561284,143.67,143.58,32.78]
[1741369928283,42.88726257,143.67,143.58,32.78]
[1741369928481,36.6261,143.7,143.58,32.78]
[1741369928991,36.6261,143.7,143.61,6.9628]
[1741369929190,0.05100469,143.65,143.53,3.7498]
[1741369929492,42.88726257,143.68,143.54,32.78]
[1741369929787,6.9632,143.61,143.58,6.9643]
[1741369929988,6.9632,143.61,143.54,32.78]
[1741369930290,6.9613,143.65,143.62,6.9623]